[Event "Khanty-Mansiysk FIDE GP (Women)"]
[Site "Khanty-Mansiysk"]
[Date "2014.04.10"]
[Round "2"]
[White "Stefanova, Antoaneta"]
[Black "Ushenina, Anna"]
[Result "1-0"]
[ECO "D02"]
[WhiteElo "2489"]
[BlackElo "2501"]
[Annotator "ChessBase Website"]
[PlyCount "127"]
[EventDate "2014.04.09"]
[EventType "tourn"]
[EventRounds "11"]
[EventCountry "RUS"]
[EventCategory "10"]
[SourceTitle "CBM 160"]
[Source "ChessBase"]
[SourceDate "2014.05.15"]
[SourceVersion "1"]
[SourceVersionDate "2014.05.15"]
[SourceQuality "1"]
[TimeControl "40/5400+30:1800+30"]
[WhiteClock "1:30:00"]
[BlackClock "1:30:00"]

1. Nf3 {[%emt 0:00:00]} d5 {[%emt 0:00:00]} 2. g3 {[%emt 0:00:00]} Bg4 {
[%emt 0:00:37]} 3. Bg2 {[%emt 0:00:10]} c6 {[%emt 0:00:27]} 4. O-O {[%emt 0:00:
27]} Nd7 {[%emt 0:01:32]} 5. d4 {[%emt 0:00:25]} e6 {[%emt 0:01:29]} 6. Nbd2 {
[%emt 0:00:50]} Ngf6 {[%emt 0:02:13]} 7. Re1 {[%emt 0:00:07]} Be7 {[%emt 0:03:
12]} 8. e4 {[%emt 0:00:10]} O-O {[%emt 0:05:56]} 9. c3 {[%emt 0:00:06]} Bh5 {
[%emt 0:10:47]} 10. e5 {[%emt 0:03:48]} Ne8 {[%emt 0:00:33]} 11. Nb3 {[%emt 0:
01:18]} a5 {[%emt 0:13:26]} (11... Nc7 12. Be3 Na6 13. Nc1 c5 14. Nd3 cxd4 15.
Bxd4 Nab8 16. Qb3 Nb6 17. Nd2 Bg6 18. Nf4 Nc6 19. Nxg6 hxg6 20. Be3 d4 21. cxd4
Nxd4 22. Bxd4 Qxd4 23. Rad1 Rab8 24. Nb1 Qb4 25. Nc3 Rfd8 26. Rxd8+ Rxd8 27.
Qxb4 Bxb4 28. Rd1 Rxd1+ 29. Nxd1 Nc4 30. Bxb7 Nxe5 31. Kf1 Kf8 32. Ke2 Ke7 33.
h4 Bc5 34. Ba6 f5 35. a3 Ng4 36. b4 Bd4 37. Bb7 e5 38. Bc8 Kd8 39. Be6 Ke7 40.
Bc8 Kd8 41. Be6 {Kokarev,D (2625)-Bukavshin,I (2578) Taganrog 2014 1/2-1/2})
12. Be3 {[%emt 0:03:15]} Nc7 {[%emt 0:06:34]} 13. Nc1 {[%emt 0:11:19]} c5 $146
{[%emt 0:09:25]} (13... a4 14. Nd3 c5 15. dxc5 Na6 16. Bd4 Naxc5 17. Nf4 Bg4
18. h3 Bf5 19. Bxc5 Bxc5 20. Nh4 Bg6 21. Nhxg6 hxg6 22. Qg4 Qc7 23. Nd3 Be7 24.
a3 Nc5 25. Rad1 Qb6 26. Nb4 Na6 27. Bf1 Nc5 28. Bg2 Nb3 29. Nd3 Nc5 30. Nb4 Nb3
{1/2-1/2 (30) Rapport,R (2543)-Ragger,M (2655) Austria 2012}) 14. Nd3 {[%emt 0:
01:56]} cxd4 {[%emt 0:03:35]} 15. cxd4 {[%emt 0:06:56]} Nb6 {[%emt 0:01:51]}
16. Nf4 {[%emt 0:05:39]} Bg4 {[%emt 0:01:24]} 17. h3 {[%emt 0:00:54]} Bf5 {
[%emt 0:00:04]} 18. Nd2 {[%emt 0:00:33]} Na6 {[%emt 0:02:21]} 19. g4 {[%emt 0:
03:09]} Bg6 {[%emt 0:00:09]} 20. a3 {[%emt 0:08:42]} a4 {[%emt 0:03:30]} 21.
Rc1 {[%emt 0:16:01]} Nb8 {[%emt 0:04:08]} 22. Bf1 {[%emt 0:06:35]} Nc6 {
[%emt 0:10:23]} 23. Nd3 {[%emt 0:04:33]} Nd7 {[%emt 0:11:16]} 24. Nf4 {[%emt 0:
05:10]} Nb6 {[%emt 0:00:46]} 25. Nf3 {[%emt 0:06:22]} Na5 {[%emt 0:00:53]} 26.
Nd2 {[%emt 0:00:34]} Qd7 {[%emt 0:00:52]} 27. Nxg6 {[%emt 0:00:53]} fxg6 {
[%emt 0:00:10]} 28. Bd3 {[%emt 0:00:46]} Rac8 {[%emt 0:01:41]} 29. Qe2 {
[%emt 0:01:24]} Rxc1 {[%emt 0:00:17]} 30. Rxc1 {[%emt 0:00:01]} Rc8 {[%emt 0:
00:06]} 31. Rxc8+ {[%emt 0:07:22]} Qxc8 {[%emt 0:00:02]} 32. f4 {[%emt 0:00:05]
} Nbc4 {[%emt 0:03:10]} 33. Nxc4 {[%emt 0:01:30]} Nxc4 {[%emt 0:00:07]} 34. Bf2
{[%emt 0:01:53]} b5 {[%emt 0:01:57]} 35. f5 {[%emt 0:00:55]} gxf5 {[%emt 0:00:
43]} 36. gxf5 {[%emt 0:00:02]} b4 {[%emt 0:01:27]} 37. axb4 {[%emt 0:02:37]}
Bxb4 {[%emt 0:00:17]} 38. Qc2 {[%emt 0:00:56]} Nb6 {[%emt 0:01:04]} 39. Qxc8+ {
[%emt 0:00:56]} Nxc8 {[%emt 0:00:01]} 40. fxe6 {[%emt 0:00:00] White's
positional advantages transformed into an extra pawn in the endgame. This
coupled with the pair of bishops gave her great winning chances, but the
conversion was far from trivial. Unlike yesterday, this time Stefanova was
spot on and she slowly pushed Ushenina back until the Bulgarian took the full
point.} h6 {[%emt 0:00:00]} 41. Bb5 {[%emt 0:07:08]} Bc3 {[%emt 0:08:01]} 42.
Bxa4 {[%emt 0:05:35]} Bxb2 {[%emt 0:00:11]} 43. Kg2 {[%emt 0:05:24]} Kf8 {
[%emt 0:01:49]} 44. Kf3 {[%emt 0:02:24]} Ke7 {[%emt 0:00:33]} 45. Bd7 {[%emt 0:
00:48]} Nb6 {[%emt 0:00:06]} 46. Kg4 {[%emt 0:00:51]} g6 {[%emt 0:19:43]} 47.
Bh4+ {[%emt 0:00:29]} g5 {[%emt 0:00:02]} 48. Bf2 {[%emt 0:00:05]} Nc4 {
[%emt 0:02:01]} 49. Kh5 {[%emt 0:04:01]} Bc1 {[%emt 0:02:30]} 50. Kxh6 {
[%emt 0:02:18]} Ne3 {[%emt 0:00:05]} 51. Kh5 {[%emt 0:05:39]} Ng2 {[%emt 0:00:
23]} 52. Kg4 {[%emt 0:00:23]} Bd2 {[%emt 0:00:47]} 53. Bc8 {[%emt 0:00:57]} Bc1
{[%emt 0:00:39]} 54. Bg3 {[%emt 0:00:53]} Bd2 {[%emt 0:00:29]} 55. Kf3 {
[%emt 0:00:32]} Nh4+ {[%emt 0:00:43]} 56. Ke2 {[%emt 0:00:19]} Ba5 {[%emt 0:00:
38]} 57. Bf2 {[%emt 0:00:31]} Bb4 {[%emt 0:00:08]} 58. Be3 {[%emt 0:00:22]} Nf5
{[%emt 0:00:27]} 59. Bxg5+ {[%emt 0:00:10]} Kf8 {[%emt 0:00:17]} 60. Kd3 {
[%emt 0:00:15]} Be1 {[%emt 0:00:20]} 61. Bb7 {[%emt 0:01:23]} Bf2 {[%emt 0:00:
17]} 62. e7+ {[%emt 0:00:46]} Nxe7 {[%emt 0:00:12]} 63. Bxe7+ {[%emt 0:00:09]}
Kxe7 {[%emt 0:00:04]} 64. Bxd5 {[%emt 0:00:04]} 1-0

[Event "Sautron op 13th"]
[Site "Sautron"]
[Date "2013.10.28"]
[Round "3"]
[White "Burmakin, Vladimir"]
[Black "Drasko, Milan"]
[Result "1-0"]
[ECO "D02"]
[WhiteElo "2581"]
[BlackElo "2451"]
[Annotator "Primel,D"]
[PlyCount "119"]
[EventDate "2013.10.26"]
[EventType "swiss"]
[EventRounds "9"]
[EventCountry "FRA"]
[SourceTitle "EXT 2014"]
[Source "ChessBase"]
[SourceDate "2013.11.20"]
[SourceVersion "1"]
[SourceVersionDate "2013.11.20"]
[SourceQuality "1"]
[TimeControl "40/5400+30:1800+30"]
[WhiteClock "1:30:00"]
[BlackClock "1:30:00"]

1. d4 {[%emt 0:00:00]} e6 {[%emt 0:00:00]} 2. g3 {[%emt 0:00:00]} d5 {[%emt 0:
06:43]} 3. Nf3 {[%emt 0:00:00]} b5 $1 {[%emt 0:06:20][%csl Gc4]} (3... Nf6 4.
Bg2 b5 5. O-O Nbd7 6. a4 b4 7. c4 bxc3 8. Nxc3 Be7 9. Bf4 a6 10. Ne5 Nxe5 11.
dxe5 Nd7 12. e4 c6 13. exd5 cxd5 14. h4 O-O 15. Ne2 a5 16. Nd4 Qb6 17. Be3 Nxe5
18. Rc1 Qb4 19. Bf4 Bf6 20. Re1 Nd3 21. Nc2 Qb3 22. Re3 Nxc1 23. Rxb3 Nxb3 24.
Ne3 Nd4 25. Ng4 e5 26. Nxe5 Ne6 27. Qxd5 Ra6 28. Be3 Rd8 29. Qe4 Rad6 30. Kh2
Nd4 31. Ng4 Bxg4 32. Qxg4 g6 33. Bg5 {Wang Yue (2716)-Timofeev,A (2690) Ningbo
2010 1/2-1/2}) 4. Qd3 $5 {[%emt 0:00:37][%cal Gd3b5,Ge2e4] Un ordre de coups
trés rare} (4. Bg2 {La grande ligne}) 4... a6 $146 {[%emt 0:01:29]} (4... Ba6
5. Bg2 Nf6 6. Bg5 c5 7. c3 Nbd7 8. a4 Qb6 9. axb5 Bxb5 10. Qc2 h6 11. Be3 Ng4
12. Bc1 cxd4 13. Nxd4 Bc5 14. O-O Bxd4 15. cxd4 Qxd4 16. Nc3 Qb6 17. h3 Ngf6
18. Be3 Qb7 19. Qb3 Bc6 20. Qxb7 Bxb7 21. Rxa7 Rxa7 22. Bxa7 Ke7 23. f4 Rc8 24.
Bd4 Nc5 25. Rd1 h5 26. Bf3 g6 27. Bf2 Nfe4 28. Bxe4 Nxe4 29. Nxe4 dxe4 30. Be3
Rc2 31. Rd2 Rxd2 32. Bxd2 Kd6 33. Kf2 {1/2-1/2 (33) Alekseev,E (2691)-Galkin,A
(2597) Irkutsk 2010}) 5. e4 {[%emt 0:03:24]} dxe4 {[%emt 0:07:48]} 6. Qxe4 {
[%emt 0:00:55]} Ra7 {[%emt 0:00:05][%cal Gc8b7]} 7. Bg2 {[%emt 0:00:39]} Nf6 {
[%emt 0:00:54]} (7... Bb7 8. Qe2 Nf6 9. O-O) 8. Qe2 {[%emt 0:01:47]} c5 $1 {
[%emt 0:04:04] La partie va basculer vers une structure de sicilienne et la
Ra7 sera ensuite bien placée en c7 ou d7} 9. Be3 {[%emt 0:07:39]} cxd4 {
[%emt 0:03:05]} 10. Bxd4 $32 {[%emt 0:08:20]} Rd7 {[%emt 0:00:16]} 11. c3 {
[%emt 0:00:08]} (11. Be3 Be7 (11... Nd5 $132)) 11... Nc6 {[%emt 0:02:34]} 12.
O-O {[%emt 0:11:07]} Be7 {[%emt 0:05:14]} (12... Nxd4 13. Nxd4 Be7 14. a4 $1 {
[%csl Ra6,Rb5]}) 13. a4 $1 {[%emt 0:00:26]} b4 {[%emt 0:13:56]} 14. Ne5 {
[%emt 0:04:43]} Nxd4 $6 {[%emt 0:01:44]} (14... Nxe5 $142 15. Bxe5 bxc3 (15...
O-O) 16. Nxc3 O-O 17. Rad1 Qb6 $132 {[%csl Rb2]}) 15. cxd4 {[%emt 0:00:04]} Rc7
{[%emt 0:00:26]} 16. Bc6+ {[%emt 0:05:57]} Kf8 {[%emt 0:02:14]} (16... Nd7) 17.
Nd2 {[%emt 0:01:43]} g6 {[%emt 0:07:59]} 18. Nb3 {[%emt 0:09:57][%cal Gb3c5,
Gb3d4,Gb3a5]} Kg7 {[%emt 0:03:14]} 19. Rac1 {[%emt 0:00:24]} Bd6 {[%emt 0:08:
48]} 20. Rc4 {[%emt 0:05:11]} Qe7 {[%emt 0:07:44]} 21. Rfc1 {[%emt 0:00:27]} h5
{[%emt 0:06:39]} 22. h4 {[%emt 0:05:44]} Nd5 $6 {[%emt 0:01:50]} 23. Qf3 {
[%emt 0:02:23]} (23. Nxg6 $1 fxg6 24. Bxd5 Rxc4 (24... exd5 25. Rxc7) 25. Bxc4)
23... Nb6 {[%emt 0:00:20]} 24. R4c2 {[%emt 0:00:10]} Bxe5 {[%emt 0:05:39]} 25.
dxe5 {[%emt 0:00:14][%csl Rf6][%cal Gb3d2,Gd2e4,Ge4f6]} Rd8 {[%emt 0:00:09]}
26. a5 {[%emt 0:02:45]} (26. Nd2 Bb7 27. Bxb7 Rxb7 28. Ne4 $36 {[%csl Rg7]
[%cal Ge4f6]}) 26... Nd5 {[%emt 0:00:16]} 27. Bxd5 {[%emt 0:00:50]} Rxc2 {
[%emt 0:00:05]} 28. Rxc2 {[%emt 0:00:09]} exd5 {[%emt 0:00:05]} 29. Qf4 {
[%emt 0:00:28]} Bf5 {[%emt 0:00:23]} 30. Rc6 {[%emt 0:09:49]} Re8 {[%emt 0:00:
49]} 31. Nd4 $1 {[%emt 0:03:24]} Qxe5 {[%emt 0:00:11]} 32. Nxf5+ {[%emt 0:00:
10]} Qxf5 {[%emt 0:00:22]} 33. Qxf5 {[%emt 0:00:08]} gxf5 {[%emt 0:00:05]} 34.
Kf1 {[%emt 0:02:49]} Re6 {[%emt 0:03:59]} 35. Rb6 $1 {[%emt 0:00:08]} f4 {
[%emt 0:00:37]} 36. Rxb4 {[%emt 0:03:14]} f3 {[%emt 0:01:12][%csl Rf1]} 37. Rf4
{[%emt 0:01:58]} Re2 {[%emt 0:00:06]} 38. b3 {[%emt 0:00:11]} Ra2 {[%emt 0:00:
29]} 39. Rxf3 {[%emt 0:00:10]} Rxa5 {[%emt 0:00:05]} 40. Ke2 {[%emt 0:00:00]}
Ra2+ {[%emt 0:00:00]} 41. Kd3 {[%emt 0:00:36][%csl Gd3,Rg7] Le K Noir est
coupé et les Blancs ont une meilleure finale} a5 {[%emt 0:20:10]} 42. Rf5 {
[%emt 0:02:22]} (42. Kd4 Rd2+) 42... Kg6 {[%emt 0:01:27]} 43. Rg5+ {[%emt 0:05:
19]} Kh6 {[%emt 0:02:40]} 44. Rxd5 {[%emt 0:07:50]} a4 {[%emt 0:00:43]} (44...
Rxf2 45. Rxa5 Rf3+ 46. Kc4 Rxg3 47. Rd5 (47. b4 {[%csl Gb4]} Rg4+)) 45. Rd6+ {
[%emt 0:07:56]} Kg7 {[%emt 0:00:18]} 46. b4 $5 {[%emt 0:00:43]} (46. bxa4 {
Semble plus naturel mais le P passé est trés fort}) 46... Rxf2 {[%emt 0:00:
45]} 47. Ra6 {[%emt 0:00:28]} Rf3+ {[%emt 0:01:43]} 48. Kc4 {[%emt 0:00:08]}
Rxg3 {[%emt 0:00:26]} 49. b5 $44 {[%emt 0:00:07]} Rg4+ $2 {[%emt 0:02:23]} (
49... f5 {"Les P passés doivent être poussés "disait Aaron} 50. b6 Rb3 51.
Ra7+ Kg6 52. Kc5 a3 (52... f4) 53. b7 f4 54. Kc6 Rc3+ (54... f3 55. Rxa3 $1)
55. Kd7 Rd3+ 56. Kc7 Rc3+ 57. Kb6 f3 $11 {[%cal Gc3b3]}) 50. Kc5 {[%emt 0:00:
12]} Rxh4 {[%emt 0:00:15]} 51. b6 $44 {[%emt 0:00:26] Une position
intéressante ou la force du Pb6 est plus importante que l'avantage matériel}
Rh1 {[%emt 0:00:35]} 52. b7 {[%emt 0:08:15][%cal Ga6b6]} Rc1+ {[%emt 0:01:30]}
53. Kd6 {[%emt 0:00:05]} Rb1 {[%emt 0:00:39]} 54. Kc7 {[%emt 0:00:10]} Rxb7+ $2
$138 {[%emt 0:04:19] Il restait moins de 02 mns pour finir la partie mais un
GMI aussi expérimenté devait pouvoir gérer cette position technique} (54...
a3 $1 55. b8=Q (55. Rxa3 h4 56. b8=Q Rxb8 57. Kxb8 Kg6 58. Kc7 f5 59. Kd6 Kg5
60. Ke5 Kg4 $11) 55... Rxb8 56. Kxb8 {La différence entre les deux variantes
est le fait que le Kb8 est plus éloigné des P adverses.}) 55. Kxb7 {[%emt 0:
00:09]} h4 {[%emt 0:00:50]} 56. Rxa4 {[%emt 0:04:29]} Kf6 {[%emt 0:00:39]} 57.
Rxh4 {[%emt 0:00:14]} Ke5 {[%emt 0:00:18]} 58. Kc6 {[%emt 0:00:28]} f5 {
[%emt 0:00:04]} 59. Kc5 {[%emt 0:00:47]} f4 {[%emt 0:00:10]} 60. Kc4 {[%emt 0:
00:09]} 1-0

[Event "Rohde op 12th"]
[Site "Sautron"]
[Date "2012.11.02"]
[Round "8"]
[White "Ulybin, Mikhail"]
[Black "Karpatchev, Aleksandr"]
[Result "1-0"]
[ECO "D02"]
[WhiteElo "2529"]
[BlackElo "2458"]
[Annotator "RR"]
[PlyCount "138"]
[EventDate "2012.10.27"]
[EventType "swiss"]
[EventRounds "9"]
[EventCountry "FRA"]
[SourceTitle "EXT 2014"]
[Source "ChessBase"]
[SourceDate "2013.11.20"]
[SourceVersion "1"]
[SourceVersionDate "2013.11.20"]
[SourceQuality "1"]
[TimeControl "40/5400+30:1800+30"]
[WhiteClock "1:30:00"]
[BlackClock "1:30:00"]

1. Nf3 {[%emt 0:02:30]} d5 {[%emt 0:00:00]} 2. g3 {[%emt 0:00:59]} g6 {[%emt 0:
02:10]} 3. Bg2 {[%emt 0:01:15]} Bg7 {[%emt 0:00:15]} 4. d4 {[%emt 0:00:57]} c6
{[%emt 0:01:13]} 5. O-O {[%emt 0:01:12]} Nf6 {[%emt 0:00:06]} 6. Be3 {[%emt 0:
04:05][%cal Gd1d2,Gd2c1,Ge3h6] Une ligne secondaire jouée par Aronian en
premier} (6. c4) (6. Nbd2) 6... O-O {[%emt 0:00:58]} (6... Ng4 7. Bf4) 7. Qc1 {
[%emt 0:01:23]} Re8 {[%emt 0:12:42]} (7... Qb6 {[%csl Rb2]} 8. h3 Bf5) 8. Rd1 {
[%emt 0:16:09]} Bf5 {[%emt 0:06:07]} 9. c4 {[%emt 0:04:48]} Nbd7 {[%emt 0:02:
57]} 10. h3 {[%emt 0:15:04]} (10. Ne5 Rc8 {Maletin,P (2429)-Vitiugov,N (2474)
RUS-ch U20 Samara 2004 (7) 1-0}) 10... Nb6 {[%emt 0:04:15]} 11. Na3 {[%emt 0:
04:43]} (11. Nbd2) 11... Be4 {[%emt 0:02:17]} 12. Bf4 {[%emt 0:05:16]} dxc4 {
[%emt 0:21:09]} 13. Nxc4 {[%emt 0:02:44]} Nxc4 {[%emt 0:01:05]} 14. Qxc4 {
[%emt 0:00:20]} Qb6 {[%emt 0:01:34]} 15. Ne5 {[%emt 0:12:03]} Bd5 {[%emt 0:00:
43]} 16. Qc2 {[%emt 0:01:45]} Bxg2 {[%emt 0:02:32]} 17. Kxg2 {[%emt 0:00:21]}
Nd5 {[%emt 0:02:50]} 18. Nf3 $1 {[%emt 0:03:37]} Nxf4+ {[%emt 0:01:23]} 19.
gxf4 {[%emt 0:00:12]} Rad8 {[%emt 0:01:38]} 20. e3 $14 {[%emt 0:01:58][%csl
Gc5,Rg7]} Rd5 {[%emt 0:02:48]} 21. Rac1 {[%emt 0:03:35]} Red8 {[%emt 0:02:23]}
22. Rd3 {[%emt 0:03:51]} (22. b3) 22... Rb5 {[%emt 0:05:06]} 23. b3 {[%emt 0:
02:55]} Rbd5 {[%emt 0:00:56]} 24. Rc3 {[%emt 0:01:05]} e6 {[%emt 0:02:17]} 25.
Rc4 {[%emt 0:01:35]} Qc7 {[%emt 0:02:17]} 26. b4 {[%emt 0:01:59]} a5 $1 {
[%emt 0:01:59]} 27. Rb1 {[%emt 0:01:04]} Rb5 {[%emt 0:03:46]} 28. bxa5 {
[%emt 0:02:25]} Qxa5 {[%emt 0:00:37]} 29. Rxb5 {[%emt 0:03:41]} Qxb5 {[%emt 0:
00:01]} 30. Rc3 {[%emt 0:00:52]} Ra8 {[%emt 0:08:18]} 31. Rb3 {[%emt 0:00:09]}
Qa6 {[%emt 0:00:54]} 32. Rb2 {[%emt 0:00:30]} h6 {[%emt 0:00:46]} 33. Qc1 {
[%emt 0:00:36]} (33. Ne1 {[%cal Ge1d3,Gd3c5]}) 33... Ra7 {[%emt 0:04:00]} 34.
Qc5 {[%emt 0:00:21]} Bf8 {[%emt 0:00:19]} 35. Qe5 {[%emt 0:00:35]} Qa3 {
[%emt 0:00:43]} 36. Rc2 {[%emt 0:00:30]} Qd6 {[%emt 0:00:30]} 37. Qxd6 {
[%emt 0:00:32]} Bxd6 {[%emt 0:00:01]} 38. Nd2 {[%emt 0:00:33]} Kf8 {[%emt 0:00:
51]} 39. Kf3 {[%emt 0:00:25]} Ke7 {[%emt 0:00:16]} 40. Nc4 {[%emt 0:00:00]} Bc7
{[%emt 0:00:00]} 41. h4 {[%emt 0:14:22]} f5 {[%emt 0:09:05]} 42. Rb2 {[%emt 0:
05:26]} Kf6 {[%emt 0:01:55]} 43. Ne5 {[%emt 0:02:04]} Bd6 {[%emt 0:04:31]} 44.
a4 {[%emt 0:07:04]} Bc7 {[%emt 0:05:23]} 45. Rb1 {[%emt 0:00:46]} Bxe5 {
[%emt 0:14:45]} 46. fxe5+ {[%emt 0:00:28]} Kf7 {[%emt 0:00:12]} 47. Kf4 {
[%emt 0:00:54]} Kg7 {[%emt 0:00:06]} 48. a5 $14 {[%emt 0:01:55][%csl Ra7,Gb1,
Rb7] La finale est un peu meilleure pour les Blancs qui ont des pièces plus
actives mais le K Blanc manque de cases d'accès} Kf7 {[%emt 0:00:04]} 49. f3 $1
{[%emt 0:00:36][%cal Ge3e4]} Ke7 {[%emt 0:00:15]} 50. e4 {[%emt 0:00:46][%cal
Gd4d5]} Kf7 {[%emt 0:01:29]} (50... fxe4) 51. Rb6 {[%emt 0:01:35]} (51. exf5 {
Semblait plus anturel pour donner des cases d'accès au K Blanc} gxf5 (51...
exf5 $6 {[%cal Gf7e6]} 52. h5 {[%cal Gf4f5]}) 52. h5 {[%csl Gg6][%cal Gb1g1,
Gg1g6,Gg6h6,Gb1a1,Gf4e3,Ge3d3,Gd3c3,Gc3b4]} Kg7 (52... Ke7 53. Rg1 {[%cal
Gg1g6]} Ra6) 53. Ke3 (53. Rg1+ Kf7 54. Rg6 Rxa5 55. Rf6+ Ke7 56. Rxh6 Ra4 57.
Rh7+ Kf8 58. Rxb7 Rxd4+ 59. Kg5 $18 {[%csl Rf8][%cal Gg5f6]}) 53... Rxa5 54.
Rxb7+ Kf8 {[%csl Rf8]} 55. Rc7 Ra3+ 56. Kf4 Rd3 $1 57. Rh7 Rxd4+ 58. Kg3 c5 59.
Rxh6 Ke7 60. Rh7+ Kf8 (60... Kd8 61. h6) 61. Rc7 c4 62. h6 Kg8 63. Re7 c3 64.
Rc7 c2 65. Rxc2 Kh7 66. Rh2) 51... Ke7 {[%emt 0:00:04]} 52. d5 {[%emt 0:00:49]}
fxe4 {[%emt 0:01:22]} 53. fxe4 {[%emt 0:00:35]} cxd5 {[%emt 0:00:36]} 54. exd5
{[%emt 0:00:08]} g5+ $1 {[%emt 0:00:21]} 55. hxg5 {[%emt 0:00:41]} hxg5+ {
[%emt 0:00:00]} 56. Kxg5 {[%emt 0:00:21]} exd5 {[%emt 0:00:16]} 57. Kf5 {
[%emt 0:00:28]} d4 $1 {[%emt 0:00:21]} 58. Rh6 {[%emt 0:00:43]} Rxa5 {[%emt 0:
02:51]} 59. Rh7+ {[%emt 0:00:17]} Kd8 {[%emt 0:00:29]} 60. Kf6 {[%emt 0:00:16]}
Ra1 {[%emt 0:00:18]} (60... d3) 61. e6 {[%emt 0:00:43]} Rf1+ {[%emt 0:00:21]}
62. Ke5 {[%emt 0:00:17][%cal Ge5d6]} Ra1 {[%emt 0:00:53][%cal Ga1a6]} 63. Kf6 {
[%emt 0:01:02]} (63. Kxd4 $11) 63... Rf1+ {[%emt 0:00:02]} 64. Ke5 {[%emt 0:00:
12]} Ra1 {[%emt 0:00:00]} 65. Rxb7 {[%emt 0:00:42]} d3 {[%emt 0:00:18]} 66.
Rd7+ Ke8 67. Rxd3 {[%emt 0:01:08]} Ke7 {[%emt 0:00:02]} 68. Rd7+ {[%emt 0:00:
18]} Ke8 {[%emt 0:00:01]} 69. Rd2 {[%emt 0:00:37]} Ke7 {[%emt 0:00:04]} 1-0

[Event "Sautron op 15th"]
[Site "Sautron"]
[Date "2015.10.24"]
[Round "8.3"]
[White "Ider, Borya"]
[Black "Bailet, Pierre"]
[Result "1/2-1/2"]
[ECO "D02"]
[WhiteElo "2464"]
[BlackElo "2515"]
[Annotator "RR"]
[PlyCount "97"]
[EventDate "2015.10.24"]
[EventType "swiss"]
[EventRounds "9"]
[EventCountry "FRA"]
[SourceTitle "CBM 169 Extra"]
[Source "ChessBase"]
[SourceDate "2015.12.18"]
[SourceVersion "1"]
[SourceVersionDate "2015.12.18"]
[SourceQuality "1"]
[TimeControl "40/5400+30:1800+30"]
[WhiteClock "1:25:31"]
[BlackClock "0:33:04"]

1. d4 {[%emt 0:00:00]} d5 {[%emt 0:00:00]} 2. Nf3 {[%emt 0:00:00]} Nf6 {
[%emt 0:00:00]} 3. g3 {[%emt 0:00:00]} c6 {[%emt 0:00:07]} 4. Bg2 {[%emt 0:00:
00]} Bg4 {[%emt 0:00:51]} (4... Bf5) 5. O-O {[%emt 0:00:23]} Nbd7 {[%emt 0:00:
18]} 6. Nbd2 {[%emt 0:01:25]} e6 {[%emt 0:00:17]} 7. h3 {[%emt 0:00:24]} Bh5 {
[%emt 0:00:54]} 8. g4 {[%emt 0:01:56]} Bg6 {[%emt 0:00:08]} 9. Nh4 {[%emt 0:00:
08]} Bd6 {[%emt 0:09:03]} (9... Be7) 10. Nxg6 $146 {[%emt 0:00:20]} ({
Pertinent:} 10. e3 Qe7 11. f4 Ne4 12. Nxg6 hxg6 13. Nxe4 dxe4 14. c4 g5 15. Qb3
O-O-O 16. c5 Bc7 17. fxg5 Qxg5 18. Rxf7 Qh4 19. Qxe6 Qe1+ 20. Rf1 Qg3 21. Rf7
Rhf8 22. Qxd7+ Rxd7 23. Rxf8+ Rd8 24. Rxd8+ Kxd8 25. Bd2 Kd7 26. Re1 Bd8 27.
Re2 Bg5 28. Kf1 Ke6 29. Be1 Qh2 30. b4 a6 31. a4 Kd7 32. Bf2 Ke6 33. Rb2 Bd8
34. b5 axb5 35. axb5 Bc7 36. b6 Bb8 37. Ra2 g5 38. Ra7 Kd5 39. Rxb7 Ke6 {
Moussard,J (2423)-Barbot,P (2465) Pau 2015 1-0}) 10... hxg6 {[%emt 0:00:06]}
11. e3 {[%emt 0:04:41]} e5 $11 {[%emt 0:06:34]} 12. Qe2 {[%emt 0:05:48]} Qe7 {
[%emt 0:03:52]} 13. Re1 {[%emt 0:01:22]} O-O-O {[%emt 0:09:30]} 14. c4 {
[%emt 0:02:07]} exd4 {[%emt 0:00:41]} 15. exd4 {[%emt 0:00:52]} Qxe2 {[%emt 0:
00:05]} 16. Rxe2 {[%emt 0:00:02]} Rde8 {[%emt 0:02:12]} 17. Rxe8+ {[%emt 0:00:
07]} Rxe8 $32 {[%emt 0:00:05][%csl Ra1,Rc1] Non seulement les Blancs n'ont
rien obtenu de l'ouverture mais Pierre a obtenu une petite avance de
développement} 18. Kf1 {[%emt 0:00:02]} dxc4 {[%emt 0:14:40][%csl Rd4]} 19.
Nxc4 {[%emt 0:01:26]} Bc7 {[%emt 0:00:12]} 20. b3 {[%emt 0:03:11]} Nb6 {
[%emt 0:10:09]} 21. Ba3 {[%emt 0:02:31]} Nfd5 {[%emt 0:06:15]} (21... Nbd5) (
21... Kd7 $5 22. Rd1 Nbd5 $15 {[%csl Ra2,Rd4][%cal Gd5c3]}) 22. Nd6+ {[%emt 0:
05:14]} Bxd6 {[%emt 0:00:06]} 23. Bxd6 {[%emt 0:00:03]} Kd7 {[%emt 0:00:46]}
24. Bg3 {[%emt 0:00:56]} g5 {[%emt 0:02:17]} 25. h4 {[%emt 0:04:47]} gxh4 {
[%emt 0:01:31]} 26. Bxh4 {[%emt 0:00:12]} f6 {[%emt 0:00:51]} 27. Bg3 {[%emt 0:
01:39]} g5 {[%emt 0:01:17][%csl Gf4]} 28. a4 $1 {[%emt 0:00:10] Nbd5 au lieu
de Nfd5 n'aurait pas laissé cette option aux Blancs} Nf4 {[%emt 0:03:34]} 29.
Bxf4 {[%emt 0:05:30]} gxf4 {[%emt 0:00:02]} 30. a5 {[%emt 0:00:16]} Nd5 {
[%emt 0:00:30]} 31. a6 $1 {[%emt 0:00:43]} b6 {[%emt 0:00:24]} 32. Bxd5 $1 {
[%emt 0:00:22]} (32. Rc1 Nb4) 32... cxd5 {[%emt 0:00:05]} 33. Kg2 {[%emt 0:00:
03]} (33. Rc1 $6 Rc8 34. Rxc8 Kxc8 35. Ke2 b5 36. Kd3 b4 {[%cal Gc8c7,Gc7b6,
Gb6a6]}) 33... Rh8 {[%emt 0:11:42]} 34. Kf3 {[%emt 0:01:16]} Rh3+ {[%emt 0:00:
13]} 35. Kxf4 {[%emt 0:00:03]} Rxb3 {[%emt 0:00:10]} 36. Rh1 {[%emt 0:00:02]
[%csl Ra7][%cal Gh1h7]} Ke6 {[%emt 0:00:31]} 37. Rh7 {[%emt 0:00:50]} Rd3 {
[%emt 0:00:28]} 38. f3 {[%emt 0:00:57]} Rxd4+ {[%emt 0:00:10]} 39. Ke3 {
[%emt 0:00:02]} Ra4 {[%emt 0:00:26]} 40. Rxa7 {[%emt 0:00:00][%csl Ga4,Ra7] Le
P "a6" est difficile à valoriser à cause de la position des R} Ra3+ {[%emt 0:
00:00]} 41. Kf4 {[%emt 0:02:07]} Ra4+ {[%emt 0:00:55]} 42. Kg3 {[%emt 0:00:09]}
b5 $1 {[%emt 0:14:08]} 43. Ra8 {[%emt 0:00:41]} Kf7 {[%emt 0:00:38]} 44. Kf2 {
[%emt 0:02:07]} (44. a7 Kg7 45. Rd8 Rxa7 46. Rxd5 Rb7 {[%csl Gb5]}) 44... b4 {
[%emt 0:01:07]} 45. a7 {[%emt 0:01:23]} b3 {[%emt 0:01:19]} 46. Ke3 {[%emt 0:
01:50]} b2 $1 {[%emt 0:00:14]} 47. Rb8 {[%emt 0:00:02]} Rxa7 {[%emt 0:00:12]}
48. Rxb2 {[%emt 0:00:02]} Kg6 {[%emt 0:01:21]} 49. Rd2 {[%emt 0:00:48]} 1/2-1/2